[Event "16th Serbian Championship 2022"]
[Site "Bajina Basta"]
[Date "2022.12.08"]
[Round "3.5"]
[White "Ivanisevic, Ivan"]
[Black "Indjic, Aleksandar"]
[Result "0-1"]
[ECO "D40"]
[WhiteElo "2533"]
[BlackElo "2631"]
[Annotator "TA"]
[PlyCount "120"]
[EventDate "2022.12.06"]
[EventType "tourn"]
[EventCountry "SRB"]
[SourceTitle "playchess.com"]
[Source "ChessBase"]
[SourceQuality "1"]
[TimeControl "40/5400+30:1800+30"]

{[%evp 11,120,28,14,0,0,0,0,0,22,28,16,19,52,57,34,12,10,16,21,13,33,16,10,0,-1,0,0,-76,-55,-41,-43,-43,-44,-44,-52,-83,-17,-11,-18,-44,-66,-64,-62,-54,-46,-38,-64,-72,-71,-81,-15,-22,0,0,0,0,-9,-99,-98,-234,0,0,0,0,0,0,0,0,0,0,0,0,0,0,0,0,0,0,0,0,0,0,0,0,0,-1413,0,-984,-949,-12807,-12806,-12802,-5606,-29967,-4971,-3894,-2180,-1823,-1488,-911,-686,-421,-410,-607,-387,-29982,-29983,-29983,-29984,-29984,-400]} 1. d4 {[%emt 0:00:04]} Nf6 {[%emt 0:01:45]} 2. Nf3 {[%emt 0:01:32]} d5 {[%emt 0:01:00]} 3. c4 {[%emt 0:00:09]} e6 {[%emt 0:00:07]} 4. Nc3 {[%emt 0:00:33]} c5 {[%emt 0:01:13]} 5. e3 {[%emt 0:00:26]} a6 {[%emt 0:00:40]} 6. cxd5 {[%emt 0:00:36]} exd5 {[%emt 0:00:26]} 7. Bd3 {[%emt 0:00:11] D40: Queen's Gambit Declined: Semi-Tarrasch with 5 e3.} Nc6 {[%emt 0:06:43]} 8. O-O {[%emt 0:00:10]} Bg4 {[%emt 0:04:58] 8...Be7 is becoming the main line.} 9. Be2 {[%emt 0:07:20] The position is equal.} Bd6 {[%emt 0:01:51]} 10. dxc5 {[%emt 0:01:14]} Bxc5 {[%emt 0:00:25]} 11. Nd4 {[%emt 0:00:25]} Bc8 {[%emt 0:08:20]} (11... Bxe2 {simplifies} 12. Ncxe2 O-O 13. b3 Nxd4 14. Nxd4 Ne4) 12. Nxc6 {[%emt 0:12:02]} bxc6 {[%emt 0:00:31]} 13. e4 {[%emt 0:00:54]} O-O {[%emt 0:04:34]} 14. Bg5 {[%emt 0:03:24] [#] Threatening exd5.} Be7 $146 {[%emt 0:05:20]} (14... Rb8 {with more complications.} 15. Rc1 h6 16. Bh4 Be7) ({Predecessor:} 14... dxe4 15. Qxd8 Rxd8 16. Nxe4 Be7 17. Nxf6+ Bxf6 18. Bxf6 gxf6 19. Rfd1 Bb7 20. Rac1 Kg7 21. Bf3 a5 22. h4 Kf8 {1-0 (41) Malyuga,V (2235)-Izyumsky,R Moscow 2007}) 15. exd5 {[%emt 0:06:20]} cxd5 {[%emt 0:00:28]} (15... Nxd5 {simplifies} 16. Bxe7 Qxe7 17. Nxd5 cxd5 18. Re1 Be6) 16. Bf3 {[%emt 0:04:21][%cal Rc3d5]} Rb8 {[%emt 0:00:54]} 17. b3 {[%emt 0:01:48]} d4 {[%emt 0:00:53]} 18. Na4 {[%emt 0:02:49]} Rb5 {[%emt 0:01:08]} 19. Bh4 {[%emt 0:03:36]} (19. Bd2 $11) 19... Bf5 {[%emt 0:16:05]} 20. Nb2 {[%emt 0:15:42]} d3 {[%emt 0:10:04] Inhibits Be2.} 21. Nc4 $1 {[%emt 0:01:46]} h6 {[%emt 0:02:18]} 22. Rc1 {[%emt 0:05:38]} Qd4 {[%emt 0:04:54]} 23. Bg3 {[%emt 0:04:16]} Bb4 {[%emt 0:10:31] Black has more active pieces.} ({Black should try} 23... Ne4 $17 {Hoping for ...Nxg3.} 24. Ne3 Nc3 25. Rxc3 Qxc3) 24. Ne3 $11 {[%emt 0:03:41]} Bc3 {[%emt 0:00:25] Strongly threatening ...d2.} 25. a4 {[%emt 0:01:15] Against d2} Rc5 {[%emt 0:00:27] White must now prevent ...Bh7.} 26. Rxc3 $1 {[%emt 0:07:15]} Qxc3 {[%emt 0:00:22]} 27. Bd6 {[%emt 0:00:04][%csl LRc5,LRf8] [#]} Bg6 $1 {[%emt 0:01:47][%cal Oc5c8]} 28. Bxc5 {[%emt 0:01:06]} Qxc5 {[%emt 0:00:07]} 29. Qd2 {[%emt 0:00:16] Against Qc3} Rb8 $36 {[%emt 0:01:22][%mdl 2048] Keeping White busy.} 30. Rb1 {[%emt 0:01:02]} a5 {[%emt 0:00:56] Prevents b4.} ({Black should play} 30... Ne4 $17 31. Bxe4 Bxe4) 31. h4 {[%emt 0:02:14]} h5 {[%emt 0:04:59]} (31... Ne4 {keeps more tension.} 32. Bxe4 Bxe4 33. Nc4 Rb4) 32. Nc4 $1 {[%emt 0:01:15]} Qd4 {[%emt 0:06:52]} 33. Nxa5 {[%emt 0:08:28] Nc6 is the strong threat.} Qxh4 {[%emt 0:00:08]} 34. Nc6 {[%emt 0:00:23]} (34. Nc4 $1 $11 {keeps the balance.}) 34... Re8 $17 {[%emt 0:00:09] Threatens to win with ...Ng4.} 35. g3 {[%emt 0:00:38]} (35. Re1 $17 Ne4 36. Bxe4 Bxe4 37. Na5) 35... Qh3 $2 {[%emt 0:00:03]} (35... Ne4 $1 $19 {[%cal Re4d2]} 36. Qxd3 Qf6) 36. Re1 $11 {[%emt 0:00:18]} Rxe1+ {[%emt 0:02:29]} 37. Qxe1 {[%emt 0:00:04]} Kh7 {[%emt 0:02:29]} 38. Ne7 {[%emt 0:02:03] Inhibits Qf5.} h4 $1 {[%emt 0:00:43]} 39. Nxg6 {[%emt 0:00:13]} fxg6 {[%emt 0:00:20][%mdl 4096] Endgame KQB-KQN} 40. Qf1 $1 {[%emt 0:04:12]} Qf5 {[%emt 0:00:15]} 41. Qd1 {[%emt 0:01:15]} hxg3 {[%emt 0:04:33]} 42. fxg3 {[%emt 0:03:12]} Qc5+ {[%emt 0:00:35]} 43. Kf1 {[%emt 0:01:03]} Qe3 {[%emt 0:00:07]} 44. a5 {[%emt 0:11:11]} g5 {[%emt 0:00:49]} 45. g4 {[%emt 0:01:12]} Nd7 {[%emt 0:00:42] And now ...Ne5 would win.} 46. a6 {[%emt 0:02:19]} Ne5 {[%emt 0:00:12]} 47. Kg2 {[%emt 0:00:24]} d2 {[%emt 0:10:03] Dancing on a razor blade.} 48. Qh1+ $2 {[%emt 0:08:06][%mdl 8192] [#]} (48. Qc2+ $11 Kh6 49. Bd1) 48... Kg8 $2 {[%emt 0:08:47]} (48... Kg6 $1 $19 49. Bd1 Qe4+ 50. Kh2 Nxg4+ 51. Bxg4 Qxg4 52. Qc6+ Kh5 53. Qe8+ Kh6 54. Qc6+ g6) 49. Bd5+ {[%emt 0:00:17][%mdl 8192]} (49. Bd1 $11) 49... Kf8 $19 {[%emt 0:00:13]} 50. Qf1+ {[%emt 0:01:01]} Ke7 {[%emt 0:00:13][%cal Oe3e1]} 51. a7 {[%emt 0:00:07]} Qxa7 {[%emt 0:00:54][%cal Oa7d4]} (51... Nxg4 $2 52. a8=Q $18 (52. a8=B $2 d1=Q $19) (52. a8=B $2 d1=Q $19)) 52. Qf5 {[%emt 0:03:21] [#]} Qg1+ $3 {[%emt 0:00:13][%mdl 512]} 53. Kxg1 {[%emt 0:00:23]} d1=Q+ {[%emt 0:00:07]} (53... d1=B {gets mated.} 54. Qxe5+ Kd7 55. Qe6+ Kd8 56. Bc6 Bxg4 57. Qd6+ Kc8 58. b4 Bf5 59. b5 g6 60. b6 Bh3 61. Qf8#) 54. Kh2 {[%emt 0:00:27]} Qxd5 {[%emt 0:00:09]} 55. Qxg5+ {[%emt 0:00:04]} Kf7 {[%emt 0:00:20] ( -> ...Nf3+)} 56. Qf5+ {[%emt 0:00:04]} Ke8 {[%emt 0:00:25]} 57. Qh5+ {[%emt 0:02:32]} (57. b4 $142) 57... Kd7 {[%emt 0:00:13]} 58. Qh7 $2 {[%emt 0:01:17]} (58. Qf5+ $19 Ke8 59. Kg3) 58... Qd2+ {[%emt 0:00:24] Black mates.} ({Not} 58... Nxg4+ 59. Kg3 $17) 59. Kg3 {[%emt 0:00:07]} Qe3+ {[%emt 0:00:13]} 60. Kg2 {[%emt 0:00:10]} Qf3+ {[%emt 0:00:15] Weighted Error Value: White=0.53/Black=0.41} ({Weaker is} 60... Nxg4 61. Qxg7+ Kd6 62. Qxg4 $11) (60... Qe2+ $142 61. Kh1 Qxg4 62. b4 Nf3 63. Qd3+ Kc7 64. Qf1 g5 65. Qc1+ Kd8 66. Qf1 Ke7 67. Qe2+ Kf8 68. Qh2 Nxh2 69. Kxh2 Qf3 70. Kg1 g4 71. b5 g3 72. b6 Qf2+ 73. Kh1 Qh2#) 0-1

[Event "16th Serbian Championship 2022"]
[Site "Bajina Basta"]
[Date "2022.12.09"]
[Round "4.1"]
[White "Martic, Ivan"]
[Black "Indjic, Aleksandar"]
[Result "0-1"]
[ECO "E16"]
[WhiteElo "2270"]
[BlackElo "2631"]
[Annotator "TA"]
[PlyCount "150"]
[EventDate "2022.12.06"]
[EventType "tourn"]
[EventCountry "SRB"]
[SourceTitle "playchess.com"]
[Source "ChessBase"]
[SourceQuality "1"]
[TimeControl "40/5400+30:1800+30"]

{[%evp 17,150,11,14,-14,-13,-7,0,-2,0,0,0,0,0,0,0,0,0,0,0,5,0,0,0,0,-10,-10,0,0,0,0,0,0,0,0,0,-50,17,0,0,0,0,0,0,0,0,0,0,0,0,0,0,-15,-18,-25,-27,-161,-145,-246,0,-238,-241,-251,-238,-302,-126,-284,-101,-159,-118,-173,-173,-173,-173,-166,-143,-291,-282,-237,-270,-291,-208,-229,-87,-127,0,0,0,0,0,0,0,0,0,-627,-678,-601,-587,-623,-648,-649,-589,-637,-612,-733,-743,-678,-670,-29973,-29972,-29964,-3418,-29975,-29976,-29978,-29979,-29979,-29980,-29980,-29979,-29983,-29984,-29984,-29985,-29985,-29986,-29987,-29986,-29987,-29988,-29989,-29990,-29991,-29992,-29993,-29994]} 1. d4 {[%emt 0:00:07]} Nf6 {[%emt 0:00:41]} 2. c4 {[%emt 0:00:21]} e6 {[%emt 0:00:11]} 3. Nf3 {[%emt 0:00:16]} Bb4+ {[%emt 0:00:56]} 4. Bd2 {[%emt 0:04:08]} a5 {[%emt 0:00:10]} 5. Nc3 {[%emt 0:00:51]} b6 {[%emt 0:00:12]} 6. g3 {[%emt 0:00:11]} Bb7 {[%emt 0:00:45]} 7. Bg2 {[%emt 0:00:07]} d6 {[%emt 0:01:28]} 8. O-O {[%emt 0:01:52]} Nbd7 {[%emt 0:00:12]} 9. Qc2 {[%emt 0:08:02]} O-O {[%emt 0:00:58] [#]} 10. Bf4 $146 {[%emt 0:01:12] E16: Queen's Indian: 4 g3 Bb7 5 Bg2 Bb4+.} ({Predecessor:} 10. Rfe1 Bxc3 11. Bxc3 Be4 12. Qa4 Qb8 13. Nh4 Bxg2 14. Nxg2 Qb7 15. e4 e5 16. f3 c6 17. Qc2 b5 {½-½ (60) Korobov,A (2692)-Peralta,F (2591) Chennai 2022}) 10... Bxc3 {[%emt 0:01:04]} 11. Qxc3 {[%emt 0:00:12]} Re8 {[%emt 0:00:25]} 12. Rad1 {[%emt 0:12:10] The position is equal.} h6 {[%emt 0:01:57]} 13. Rfe1 {[%emt 0:01:08]} Qe7 {[%emt 0:00:30]} 14. b3 {[%emt 0:03:29]} Be4 {[%emt 0:02:37]} 15. Bc1 {[%emt 0:04:45]} c5 {[%emt 0:16:48]} 16. Bb2 {[%emt 0:03:28]} a4 {[%emt 0:01:22]} 17. Bh3 {[%emt 0:09:10]} axb3 {[%emt 0:09:51]} 18. axb3 {[%emt 0:00:30]} Rab8 {[%emt 0:03:01]} 19. Ra1 {[%emt 0:07:22]} b5 {[%emt 0:00:36]} 20. Ra7 {[%emt 0:03:13]} bxc4 {[%emt 0:00:54]} 21. bxc4 {[%emt 0:00:17][%cal Od4d5]} Qd8 {[%emt 0:07:29] Prevents d5.} 22. Ba1 {[%emt 0:19:59]} (22. Nd2 {seems wilder.} cxd4 23. Qxd4 Nc5 24. Bc3) 22... Bxf3 {[%emt 0:04:19]} 23. exf3 {[%emt 0:03:24]} cxd4 {[%emt 0:00:23]} 24. Qxd4 {[%emt 0:00:24]} Ne5 {[%emt 0:01:32]} 25. Ra3 {[%emt 0:01:46]} Ra8 {[%emt 0:02:27] Against f4} 26. Rc3 {[%emt 0:02:16]} (26. Ree3 $11) 26... Qa5 {[%emt 0:00:42]} (26... Ra2 $15 27. Bg2 Qc7) 27. Bg2 {[%emt 0:02:10]} Rec8 {[%emt 0:02:46][%cal Oc8c4]} 28. Rd1 {[%emt 0:05:36]} Qxa1 {[%emt 0:01:09]} 29. f4 {[%emt 0:02:20][%cal Og2a8]} Ra3 {[%emt 0:22:38]} 30. Rxa1 {[%emt 0:00:19]} Rxa1+ {[%emt 0:00:02]} 31. Bf1 {[%emt 0:00:06]} Rxc4 $1 {[%emt 0:00:08][%mdl 64] Pin} 32. Qd2 {[%emt 0:04:10]} Ne4 $36 {[%emt 0:00:20][%csl LRc3,LRd2][%mdl 2048] White is under pressure. Pair of Knights!} 33. Qb2 {[%emt 0:00:11]} Nf3+ {[%emt 0:03:16]} 34. Rxf3 {[%emt 0:00:50]} Rcc1 {[%emt 0:00:02]} 35. Kg2 {[%emt 0:00:25]} Rxf1 {[%emt 0:00:02]} 36. g4 {[%emt 0:00:55]} (36. Kh3 $1 $11 {and White stays safe.}) 36... h5 {[%emt 0:04:02]} 37. gxh5 {[%emt 0:00:21]} (37. Kh3 $17) 37... Rg1+ $1 $19 {[%emt 0:00:28]} 38. Kh3 {[%emt 0:00:02][%cal Oh5h6]} Ra5 {[%emt 0:00:20][%cal Ra5h5] Against h6} 39. Rg3 {[%emt 0:00:34]} (39. Qb8+ $2 Kh7 40. Rg3 Nxf2+ 41. Kh4 Ra3 $3 $19 {[%mdl 512]}) 39... Nxg3 {[%emt 0:02:34] The board is on fire.} 40. hxg3 {[%emt 0:00:30]} Rxh5+ {[%emt 0:00:09][%mdl 4096] Endgame KQ-KRR} 41. Kg4 {[%emt 0:30:09]} Rd5 {[%emt 0:30:10]} (41... Rh2 $19 {And now ...f5+ would win.} 42. f5 exf5+ 43. Kxf5 Rgg2) 42. Kf3 {[%emt 0:00:00]} ({Better is} 42. Qb8+ Kh7 43. Qc7) 42... Kh7 {[%emt 0:00:00]} 43. Qc2+ {[%emt 0:00:00]} (43. Qb7 $17) 43... g6 $1 {[%emt 0:00:00]} 44. Qc7 {[%emt 0:00:00]} Kg7 {[%emt 0:00:00]} 45. Qc3+ {[%emt 0:00:00]} e5 {[%emt 0:00:00][%cal Be6e5,Be5e4][%mdl 32]} 46. f5 {[%emt 0:00:00]} (46. Qc8 $17 {was worth a try.}) 46... gxf5 {[%emt 0:00:00][%cal Od5d3] Hoping for ...Rd3+!} 47. Qc8 {[%emt 0:00:00]} e4+ $1 {[%emt 0:00:00]} ({Worse is} 47... Rd3+ 48. Ke2 Rd4 49. Qxf5 $11) 48. Ke2 {[%emt 0:00:00]} Rdd1 {[%emt 0:00:00][%csl Gd1][%cal Rg1e1]} 49. Ke3 {[%emt 0:00:00] [#]} Rde1+ {[%emt 0:00:50]} (49... Rge1+ $1 $19 50. Kf4 Re2 51. Kxf5 Rd3) 50. Kd2 {[%emt 0:00:00] [#]} Rgf1 {[%emt 0:05:18]} (50... e3+ $1 $17 51. fxe3 Rd1+ 52. Ke2 Rc1 53. Qxf5 Rxg3) 51. Qd8 $11 {[%emt 0:00:00]} f6 {[%emt 0:01:09]} (51... Rxf2+ $2 52. Kxe1 Rf3 53. Qxd6 $18) 52. Qe7+ {[%emt 0:00:06]} Kg6 {[%emt 0:00:09]} 53. Qe8+ {[%emt 0:02:07]} Kg5 {[%emt 0:00:11][%cal Og5g4] White must now prevent ...Kg4!} 54. Qg8+ {[%emt 0:00:18]} Kh5 {[%emt 0:00:25]} 55. g4+ $2 {[%emt 0:02:01][%mdl 8192] Black converts the advantage convincingly.} (55. f3 $11) 55... fxg4 $19 {[%emt 0:00:30]} 56. Qh7+ {[%emt 0:00:35]} Kg5 {[%emt 0:00:08]} 57. Qg7+ {[%emt 0:00:09]} Kf5 {[%emt 0:00:07] Strongly threatening ...Rd1+.} 58. Qh7+ {[%emt 0:00:50]} Ke6 {[%emt 0:00:36]} 59. Qg8+ {[%emt 0:01:28]} Ke5 {[%emt 0:00:08] ...Rd1+ is the strong threat.} 60. Qxg4 {[%emt 0:00:25]} Rd1+ $1 {[%emt 0:00:58]} ({And not} 60... Rxf2+ 61. Kxe1 Rf3 62. Qg8 $11) 61. Kc2 {[%emt 0:00:17]} Rd3 {[%emt 0:01:34]} ({Not} 61... Rxf2+ 62. Kxd1 e3 63. Qh5+ Kd4 64. Qe8 $11) 62. Qh4 {[%emt 0:01:19]} Rf3 {[%emt 0:00:18]} 63. Qh2+ {[%emt 0:00:35]} Ke6 {[%emt 0:00:14]} 64. Qh7 {[%emt 0:00:25]} R1xf2+ {[%emt 0:00:08] Black mates.} 65. Kc1 {[%emt 0:00:08]} d5 {[%emt 0:01:59]} 66. Qg8+ {[%emt 0:00:06]} Ke5 {[%emt 0:00:07]} 67. Qb8+ {[%emt 0:00:07]} Kf5 {[%emt 0:00:11]} 68. Qc8+ {[%emt 0:00:11]} Kf4 {[%emt 0:00:11]} 69. Qc7+ {[%emt 0:00:21]} Kg4 {[%emt 0:00:09]} 70. Qd7+ {[%emt 0:00:39]} Kg3 {[%emt 0:00:09]} 71. Qxd5 {[%emt 0:00:29]} f5 {[%emt 0:01:16]} 72. Qg8+ {[%emt 0:00:47]} Kh2 {[%emt 0:00:07]} 73. Qh7+ {[%emt 0:00:26]} Kg1 {[%emt 0:00:06]} 74. Qg7+ {[%emt 0:00:14]} Rg2 {[%emt 0:00:07][%cal Rf3f1]} 75. Qa7+ {[%emt 0:00:05]} e3 {[%emt 0:00:26] Weighted Error Value: White=0.33/Black=0.15 (very precise)} 0-1

[Event "16th Serbian Championship 2022"]
[Site "Bajina Basta"]
[Date "2022.12.09"]
[Round "4.2"]
[White "Radovanovic, Nikola"]
[Black "Ivanisevic, Ivan"]
[Result "0-1"]
[ECO "B45"]
[WhiteElo "2414"]
[BlackElo "2533"]
[Annotator "TA"]
[PlyCount "112"]
[EventDate "2022.12.06"]
[EventType "tourn"]
[EventCountry "SRB"]
[SourceTitle "playchess.com"]
[Source "ChessBase"]
[SourceQuality "1"]
[TimeControl "40/5400+30:1800+30"]

{[%evp 22,112,25,23,18,20,21,3,8,22,20,31,40,30,64,44,35,35,56,55,74,16,112,93,98,88,108,68,64,74,129,99,90,93,140,133,124,110,139,131,122,69,53,47,101,30,33,30,49,33,120,15,120,46,59,0,6,0,0,0,0,0,0,0,44,31,37,66,58,100,104,30,131,116,469,115,156,0,0,0,0,0,0,-261,-249,-29995,-29996,-29996,-29997,-29997,-29994,-29998,-29999]} 1. e4 {[%emt 0:01:28]} c5 {[%emt 0:00:05]} 2. Nf3 {[%emt 0:00:13]} Nc6 {[%emt 0:00:06]} 3. d4 {[%emt 0:00:42]} cxd4 {[%emt 0:00:05]} 4. Nxd4 {[%emt 0:00:05]} Nf6 {[%emt 0:00:05]} 5. Nc3 {[%emt 0:00:08]} e6 {[%emt 0:00:04]} 6. Nxc6 {[%emt 0:01:09]} bxc6 {[%emt 0:00:06]} 7. e5 {[%emt 0:00:04]} Nd5 {[%emt 0:00:06]} 8. Ne4 {[%emt 0:00:08]} Qc7 {[%emt 0:00:20]} 9. f4 {[%emt 0:00:35]} Qb6 {[%emt 0:00:10]} 10. c4 {[%emt 0:00:38]} Bb4+ {[%emt 0:00:23]} 11. Ke2 {[%emt 0:00:09]} f5 {[%emt 0:00:20]} 12. exf6 {[%emt 0:00:42]} Nxf6 {[%emt 0:00:07] Chess con chili. B45: Sicilian Four Knights.} 13. Be3 {[%emt 0:00:58]} Qd8 {[%emt 0:00:06]} 14. Nd6+ {[%emt 0:00:28]} Bxd6 {[%emt 0:00:07] The position is equal.} 15. Qxd6 {[%emt 0:00:05]} Bb7 {[%emt 0:00:09][%cal Oc6c5]} 16. Rd1 {[%emt 0:02:36] Against c5} c5 {[%emt 0:06:21]} 17. Qxc5 {[%emt 0:00:48]} Kf7 {[%emt 0:00:47] [#]} 18. Rg1 $146 {[%emt 0:06:24]} ({Predecessor:} 18. Ke1 Re8 19. Be2 Bxg2 20. Rg1 Be4 21. Qg5 g6 22. Bd4 d5 23. c5 Rb8 24. Rg3 {1-0 (51) Shahade,G (2476)-Maltsevskaya,A (2390) Chess.com INT 2021}) 18... Re8 {[%emt 0:04:12]} 19. g3 {[%emt 0:05:42]} Rc8 {[%emt 0:20:10]} 20. Qxa7 {[%emt 0:06:17]} Qc7 {[%emt 0:08:12]} 21. Qb6 {[%emt 0:23:16]} (21. Kd2 $1 $16) 21... Qb8 {[%emt 0:02:38]} (21... Qxb6 $1 $11 22. Bxb6 Rxc4) 22. Ke1 {[%emt 0:09:30]} (22. Kd2 {keeps more tension.} Rc6 23. Qb3 Qa8 24. Bg2) 22... e5 {[%emt 0:05:57]} 23. f5 {[%emt 0:01:02]} Qa8 {[%emt 0:02:47]} 24. Qa7 {[%emt 0:03:39]} Qxa7 {[%emt 0:02:20]} 25. Bxa7 {[%emt 0:00:08]} Bf3 {[%emt 0:00:03] Inhibits c5.} (25... d5 $142) 26. Rd6 {[%emt 0:11:05][%cal Og3g4,Bd1d6,Bd6a6,Ba6a3][%mdl 32]} Ra8 {[%emt 0:12:44] Prevents g4.} 27. Ra6 {[%emt 0:00:30]} Rec8 {[%emt 0:02:48]} (27... d6 $142) 28. c5 $16 {[%emt 0:08:15]} Bb7 {[%emt 0:18:13]} 29. Ra3 {[%emt 0:02:07]} Ng4 {[%emt 0:03:23]} 30. Bb5 {[%emt 0:08:17]} Bc6 {[%emt 0:05:50]} 31. Bxc6 {[%emt 0:00:19]} ({White should play} 31. Ba6 $16) 31... dxc6 $14 {[%emt 0:01:46]} 32. Ke2 {[%emt 0:00:40]} Rd8 {[%emt 0:01:21]} (32... Nxh2 $14 33. g4 e4) 33. h3 {[%emt 0:03:55]} ({Much weaker is} 33. Bb6 $6 Rxa3 34. bxa3 Ra8 $11) (33. Rd1 $16) 33... Nf6 $11 {[%emt 0:00:16]} 34. Rd1 {[%emt 0:00:31]} Nd5 $1 {[%emt 0:00:35] Threatens to win with ...Rd7.} 35. Rdd3 {[%emt 0:02:16]} Kf6 {[%emt 0:02:12]} (35... e4 $14 36. Rdb3 Kf6) 36. Rdb3 {[%emt 0:02:58]} (36. Bb6 $16 Rdb8 37. Rxa8 Rxa8 38. Ra3) 36... Rd7 {[%emt 0:01:14] [#]} (36... Kxf5 $11 37. Rb7 g5) 37. Bb6 {[%emt 0:00:25]} (37. Bb8 $1 $16 Rxa3 38. bxa3) 37... Rb8 {[%emt 0:00:39]} 38. g4 {[%emt 0:00:41]} ({Better is} 38. Ra6 $14) 38... Nf4+ {[%emt 0:00:36]} 39. Ke3 {[%emt 0:00:36]} h5 {[%emt 0:00:59]} 40. Ra7 {[%emt 0:00:29]} Rd1 {[%emt 0:00:58]} 41. Rc7 {[%emt 0:04:49]} hxg4 {[%emt 0:04:20]} 42. hxg4 {[%emt 0:00:21]} Rh8 {[%emt 0:03:07]} 43. Rxc6+ {[%emt 0:00:58]} Kg5 {[%emt 0:00:05]} 44. Ke4 {[%emt 0:04:04] Black must now prevent Rd6.} Rh2 {[%emt 0:12:02]} 45. Re3 {[%emt 0:04:50] Inhibits Re1. Strongly threatening Rd6.} (45. Kxe5 $2 {leads to mate.} Re2+) (45. Rd6 Re1+ 46. Re3 Rxe3+ 47. Kxe3 Re2+ 48. Kf3 e4+ 49. Kg3 Rg2#) 45... Rxb2 {[%emt 0:05:56] [#]} 46. Kxe5 {[%emt 0:07:51]} ({White should try} 46. a3 $1 $16) 46... Rd5+ {[%emt 0:04:35]} (46... Kxg4 $11 {remains equal.} 47. Rd6 Rxd6 48. Kxd6 Rxa2) 47. Ke4 $16 {[%emt 0:00:04][%cal Oc6g6] aiming for Rg6+!} Rb4+ {[%emt 0:00:04]} 48. Kf3 {[%emt 0:00:07]} Rd1 {[%emt 0:00:10]} 49. Rc7 $2 {[%emt 0:07:52]} ({Only move:} 49. Ba5 $16 Rf1+ 50. Kg3 Rg1+ 51. Kf2) 49... Kh4 $11 {[%emt 0:01:28][%cal Rd1f1]} 50. Rb3 {[%emt 0:01:53]} (50. Rxg7 $2 Rf1#) 50... Rf1+ {[%emt 0:01:02]} 51. Ke3 {[%emt 0:00:04]} Re1+ {[%emt 0:02:47]} 52. Kf2 $2 {[%emt 0:02:08][%mdl 8192]} (52. Kd2 $11 Re2+ 53. Kd1 Rd4+ 54. Kc1) 52... Rbe4 $19 {[%emt 0:00:16] ( -> ...R4e2+)} 53. Kf3 {[%emt 0:00:51] Against R4e2} (53. Rxg7 $2 {is a self mate.} R4e2+ 54. Kf3 Rf1#) (53. Re7 $19 Rxe7 54. Bd8 Kxg4 55. Bxe7 Re2+ 56. Kf1 Rxe7 57. f6 gxf6 58. a4) 53... Nh3 {[%emt 0:00:24] Black mates.} 54. Rb2 {[%emt 0:01:00]} R4e3+ {[%emt 0:00:49]} 55. Kg2 {[%emt 0:00:11]} Rg3+ {[%emt 0:00:10]} 56. Kh2 {[%emt 0:00:10]} Nf4 {[%emt 0:00:40] Weighted Error Value: White=0.36/Black=0.17 (very precise)} 0-1

[Event "16th Serbian Championship 2022"]
[Site "Bajina Basta"]
[Date "2022.12.09"]
[Round "4.3"]
[White "Kovacevic, Aleksandar"]
[Black "Perunovic, Miodrag"]
[Result "1/2-1/2"]
[ECO "B06"]
[WhiteElo "2470"]
[BlackElo "2417"]
[Annotator "TA"]
[PlyCount "35"]
[EventDate "2022.12.06"]
[EventType "tourn"]
[EventCountry "SRB"]
[SourceTitle "playchess.com"]
[Source "ChessBase"]
[SourceQuality "1"]
[TimeControl "40/5400+30:1800+30"]

{[%evp 9,35,26,28,33,26,16,39,35,47,35,47,31,45,47,45,40,70,58,67,61,85,62,53,17,87,49,53,63]} 1. e4 {[%emt 0:00:09]} c5 {[%emt 0:01:26]} 2. Nf3 {[%emt 0:00:25]} g6 {[%emt 0:00:03]} 3. c3 {[%emt 0:02:30]} d5 {[%emt 0:00:03]} 4. exd5 {[%emt 0:00:09]} Qxd5 {[%emt 0:00:09]} 5. d4 {[%emt 0:00:08]} Bg7 {[%emt 0:00:09]} 6. Nbd2 {[%emt 0:00:33] B06: Modern Defence.} (6. Na3 {keeps more tension.} cxd4 7. Bc4 Qe4+ 8. Be3) 6... cxd4 {[%emt 0:03:09]} 7. Bc4 {[%emt 0:00:13]} Qd8 {[%emt 0:01:24]} 8. Nxd4 {[%emt 0:00:24]} Nh6 {[%emt 0:02:37]} 9. O-O {[%emt 0:03:07]} O-O {[%emt 0:00:08]} 10. N2f3 {[%emt 0:02:20]} Qc7 {[%emt 0:04:02]} 11. Qe2 {[%emt 0:03:18] aiming for Nb5.} a6 {[%emt 0:02:06] Prevents Nb5.} 12. Bg5 {[%emt 0:05:53][%cal Bc1g5,Bg5f4,Bf4e5,Be5d4][%mdl 32] [#]} Nc6 $146 {[%emt 0:15:27]} ({Predecessor:} 12... Nf5 13. Bb3 Nc6 14. Nxc6 Qxc6 15. Rad1 Bf6 16. Ne5 Qc7 17. Nxf7 Kg7 18. Bxf6+ exf6 {½-½ (68) Zumsande,M (2398)-Levin,F (2520) Germany 2003}) 13. Nxc6 {[%emt 0:09:33] White is much more active.} Qxc6 {[%emt 0:00:15]} 14. Rad1 {[%emt 0:00:39]} ({Stronger than} 14. Bxe7 Re8 15. Rfe1 Be6 16. Bxe6 Rxe7 17. Bxf7+ Rxf7 $17) 14... Nf5 {[%emt 0:08:17]} 15. Bf4 {[%emt 0:11:59]} (15. Bxe7 $2 {is the wrong capture.} Nxe7 16. Ng5 Qc7 $19) 15... e6 {[%emt 0:03:43]} 16. Be5 {[%emt 0:21:18]} f6 {[%emt 0:10:19]} (16... Nh4 $11 {remains equal.} 17. Nxh4 Bxe5) 17. Nd4 {[%emt 0:07:43]} Nxd4 {[%emt 0:00:03]} 18. Bxd4 {[%emt 0:00:09] Weighted Error Value: White=0.11 (very precise) /Black=0.16 (very precise)} 1/2-1/2